lending/lending_fUSD_20241115
["ID","MTS","AMOUNT","RATE_DAILY","PERIOD"]
[342297762,1731696726396,-2698.45,9.791e-05,2]
[342297763,1731696726414,-2698.45,9.791e-05,2]
[342297764,1731696726423,-2698.45,9.791e-05,2]
[342297765,1731696726433,-500.0,9.791e-05,2]
[342297766,1731696726443,-500.0,9.791e-05,2]
[342297767,1731696726453,-307.65694874,9.791e-05,2]
[342297768,1731696726462,-500.0,9.791e-05,2]
[342297769,1731696726471,-500.0,9.791e-05,2]
[342297770,1731696726480,-697.09,9.791e-05,2]
[342297771,1731696726490,-222.24059033,9.791e-05,2]
[342297772,1731696726499,-697.09,9.791e-05,2]
[342297773,1731696726509,-620.08,9.791e-05,2]
[342297774,1731696726518,-697.09,9.791e-05,2]
[342297775,1731696726527,-697.09,9.791e-05,2]
[342297776,1731696726537,-883.27,9.791e-05,2]
[342297777,1731696726547,-883.27,9.791e-05,2]
[342297778,1731696726556,-883.27,9.791e-05,2]
[342297779,1731696726566,-883.27,9.791e-05,2]
[342297780,1731696726576,-1424.51,9.791e-05,2]
[342297781,1731696726587,-1424.51,9.791e-05,2]
[342297782,1731696726596,-1424.51,9.791e-05,2]
[342297783,1731696726605,-1598.09,9.791e-05,2]
[342297784,1731696726615,-1598.09,9.791e-05,2]
[342297785,1731696726624,-1598.09,9.791e-05,2]
[342297786,1731696726633,-2365.12,9.791e-05,2]
[342297787,1731696726643,-2365.12,9.791e-05,2]
[342297788,1731696726657,-500.0,9.791e-05,2]
[342297789,1731696726667,-500.0,9.791e-05,2]
[342297790,1731696726677,-500.0,9.791e-05,2]
[342297791,1731696726687,-500.0,9.791e-05,2]
[342297792,1731696726696,-500.0,9.791e-05,2]
[342297793,1731696726706,-500.0,9.791e-05,2]
[342297794,1731696726715,-500.0,9.791e-05,2]
[342297795,1731696726729,-500.0,9.791e-05,2]
[342297796,1731696726740,-500.0,9.791e-05,2]
[342297797,1731696726749,-199.68,9.791e-05,2]
[342297798,1731696726759,-500.0,9.791e-05,2]
[342297799,1731696726768,-500.0,9.791e-05,2]
[342297800,1731696726778,-500.0,9.791e-05,2]
[342297801,1731696726787,-500.0,9.791e-05,2]
[342297802,1731696726798,-500.0,9.791e-05,2]
[342297803,1731696726809,-196.21203,9.791e-05,2]
[342297804,1731696726819,-2520.91,9.791e-05,2]
[342297805,1731696726829,-2520.91,9.791e-05,2]
[342297806,1731696726839,-2520.91,9.791e-05,2]
[342297807,1731696726849,-1217.91,9.791e-05,2]
[342297808,1731696726859,-1217.91,9.791e-05,2]
[342297809,1731696726868,-1217.91,9.791e-05,2]
[342297810,1731696726878,-1099.88,9.791e-05,2]
[342297811,1731696726888,-1099.88,9.791e-05,2]
[342297812,1731696726898,-1099.88,9.791e-05,2]
[342297813,1731696726912,-1099.88,9.791e-05,2]
[342297814,1731696726922,-1099.88,9.791e-05,2]
[342297815,1731696726931,-1781.3,9.791e-05,2]
[342297816,1731696726941,-1781.3,9.791e-05,2]
[342297817,1731696726951,-1955.18,9.791e-05,2]
[342297818,1731696726960,-1955.18,9.791e-05,2]
[342297819,1731696726970,-1955.18,9.791e-05,2]
[342297820,1731696726979,-1768.08,9.791e-05,2]
[342297821,1731696726989,-1955.18,9.791e-05,2]
[342297822,1731696727116,-1768.08,9.791e-05,2]
[342297823,1731696727134,-1955.18,9.791e-05,2]
[342297824,1731696727144,-500.0,9.791e-05,2]
[342297825,1731696727158,-1768.08,9.791e-05,2]
[342297826,1731696727167,-1955.18,9.791e-05,2]
[342297827,1731696727176,-500.0,9.791e-05,2]
[342297828,1731696727185,-1955.18,9.791e-05,2]
[342297829,1731696727194,-500.0,9.791e-05,2]
[342297830,1731696727203,-1955.18,9.791e-05,2]
[342297831,1731696727212,-197.38828354,9.791e-05,2]
[342297832,1731696727223,-1955.26881438,9.791e-05,2]
[342297833,1731696727232,-500.0,9.791e-05,2]
[342297834,1731696727242,-500.0,9.791e-05,2]
[342297835,1731696727252,-500.0,9.791e-05,2]
[342297836,1731696727263,-500.0,9.791e-05,2]
[342297837,1731696727272,-500.0,9.791e-05,2]
[342297838,1731696727282,-873.57,9.791e-05,2]
[342297839,1731696727292,-500.0,9.791e-05,2]
[342297840,1731696727302,-873.57,9.791e-05,2]
[342297841,1731696727311,-500.0,9.791e-05,2]
[342297842,1731696727321,-873.57,9.791e-05,2]
[342297843,1731696727332,-367.53881835,9.791e-05,2]
[342297844,1731696727344,-4610.43,9.791e-05,2]
[342297845,1731696727354,-4610.43,9.791e-05,2]
[342297846,1731696727365,-4610.43,9.791e-05,2]
[342297847,1731696727376,-582.91,9.791e-05,2]
[342297848,1731696727386,-4610.43,9.791e-05,2]
[342297849,1731696727396,-582.91,9.791e-05,2]
[342297850,1731696727418,-4610.43,9.791e-05,2]
[342297851,1731696727428,-582.91,9.791e-05,2]
[342297852,1731696727438,-5664.8,9.791e-05,2]
[342297853,1731696727448,-883.51,9.791e-05,2]
[342297854,1731696727459,-883.51,9.791e-05,2]
[342297855,1731696727468,-5664.8,9.791e-05,2]
[342297856,1731696727479,-883.51,9.791e-05,2]
[342297857,1731696727489,-1163.08,9.791e-05,2]
[342297858,1731696727499,-883.51,9.791e-05,2]
[342297859,1731696727509,-1163.08,9.791e-05,2]
[342297860,1731696727519,-883.63800186,9.791e-05,2]
[342297861,1731696727530,-1163.08,9.791e-05,2]
[342297862,1731696727540,-1163.08,9.791e-05,2]
[342297863,1731696727550,-2206.78,9.791e-05,2]
[342297864,1731696727561,-2206.78,9.791e-05,2]
[342297865,1731696727571,-2206.78,9.791e-05,2]
[342297866,1731696727582,-2206.78,9.791e-05,2]
[342297867,1731696727592,-1134.3,9.791e-05,2]
[342297868,1731696727602,-1134.3,9.791e-05,2]
[342297869,1731696727612,-1134.3,9.791e-05,2]
[342297870,1731696727623,-1134.3,9.791e-05,2]
[342297871,1731696727632,-1134.3,9.791e-05,2]
[342297872,1731696727642,-1134.3,9.791e-05,2]
[342297873,1731696727656,-500.0,9.791e-05,2]
[342297874,1731696727666,-1333.69,9.791e-05,2]
[342297875,1731696727676,-1134.3,9.791e-05,2]
[342297876,1731696727687,-500.0,9.791e-05,2]
[342297877,1731696727697,-5838.22,9.791e-05,2]
[342297878,1731696727707,-1134.3,9.791e-05,2]
[342297879,1731696727717,-500.0,9.791e-05,2]
[342297880,1731696727729,-5838.22,9.791e-05,2]
[342297881,1731696727740,-1134.31,9.791e-05,2]
[342297882,1731696727750,-1333.69,9.791e-05,2]
[342297883,1731696727760,-5838.22,9.791e-05,2]
[342297884,1731696727772,-1333.69,9.791e-05,2]
[342297885,1731696727782,-5838.22,9.791e-05,2]
[342297886,1731696727792,-1333.69,9.791e-05,2]
[342297887,1731696727803,-5838.22,9.791e-05,2]
[342297888,1731696727813,-1333.69,9.791e-05,2]
[342297889,1731696727822,-500.0,9.791e-05,2]
[342297890,1731696727832,-1333.69,9.791e-05,2]
[342297891,1731696727842,-500.0,9.791e-05,2]
[342297892,1731696727852,-1333.69,9.791e-05,2]
[342297893,1731696727863,-500.0,9.791e-05,2]
[342297894,1731696727873,-1333.69,9.791e-05,2]
[342297895,1731696727883,-1333.844405,9.791e-05,2]
[342297896,1731696727893,-500.0,9.791e-05,2]
[342297897,1731696727909,-3486.45,9.791e-05,2]
[342297898,1731696727919,-3486.45,9.791e-05,2]
[342297899,1731696727929,-3486.45,9.791e-05,2]
[342297900,1731696727939,-626.07,9.791e-05,2]
[342297901,1731696727949,-3486.45,9.791e-05,2]
[342297902,1731696727959,-626.07,9.791e-05,2]
[342297903,1731696727969,-726.88,9.791e-05,2]
[342297904,1731696727980,-3486.59240734,9.791e-05,2]
[342297905,1731696727989,-626.07,9.791e-05,2]
[342297906,1731696727999,-726.88,9.791e-05,2]
[342297907,1731696728009,-626.07,9.791e-05,2]
[342297908,1731696728019,-726.88,9.791e-05,2]
[342297909,1731696728028,-500.0,9.791e-05,2]
[342297910,1731696728038,-500.0,9.791e-05,2]
[342297911,1731696728048,-1736.3,9.791e-05,2]
[342297912,1731696728057,-500.0,9.791e-05,2]
[342297913,1731696728067,-1736.3,9.791e-05,2]
[342297914,1731696728077,-500.0,9.791e-05,2]
[342297915,1731696728087,-500.0,9.791e-05,2]
[342297916,1731696728098,-500.0,9.791e-05,2]
[342297917,1731696728108,-536.56288169,9.791e-05,2]
[342297918,1731696728119,-500.0,9.791e-05,2]
[342297919,1731696728128,-1169.24,9.791e-05,2]
[342297920,1731696728139,-1169.24,9.791e-05,2]
[342297921,1731696728148,-1169.24,9.791e-05,2]
[342297922,1731696728163,-1169.24,9.791e-05,2]
[342297923,1731696728174,-1332.93,9.791e-05,2]
[342297924,1731696728184,-1332.93,9.791e-05,2]
[342297925,1731696728195,-1332.93,9.791e-05,2]
[342297926,1731696728206,-525.65,9.791e-05,2]
[342297927,1731696728215,-525.65,9.791e-05,2]
[342297928,1731696728226,-1656.91,9.791e-05,2]
[342297929,1731696728236,-1656.91,9.791e-05,2]
[342297930,1731696728246,-1656.91,9.791e-05,2]
[342297931,1731696728257,-646.64,9.791e-05,2]
[342297932,1731696728267,-646.64,9.791e-05,2]
[342297933,1731696728276,-1656.91,9.791e-05,2]
[342297934,1731696728286,-646.64,9.791e-05,2]
[342297935,1731696728295,-3020.89,9.791e-05,2]
[342297936,1731696728305,-3020.89,9.791e-05,2]
[342297937,1731696728315,-3020.89,9.791e-05,2]
[342297938,1731696728325,-3020.89,9.791e-05,2]
[342297939,1731696728334,-3021.03867492,9.791e-05,2]
[342297940,1731696728343,-2072.82,9.791e-05,2]
[342297941,1731696728354,-2072.82,9.791e-05,2]
[342297942,1731696728368,-2072.82,9.791e-05,2]
[342297943,1731696728378,-2072.82,9.791e-05,2]
[342297944,1731696728388,-623.41,9.791e-05,2]
[342297945,1731696728397,-623.41,9.791e-05,2]
[342297946,1731696728412,-623.41,9.791e-05,2]
[342297947,1731696728422,-500.0,9.791e-05,2]
[342297948,1731696728432,-500.0,9.791e-05,2]
[342297949,1731696728442,-1446.58,9.791e-05,2]
[342297950,1731696728456,-1446.58,9.791e-05,2]
[342297951,1731696728467,-1446.58,9.791e-05,2]
[342297952,1731696728477,-21846.85,9.791e-05,2]
[342297953,1731696728488,-6686.06409459,9.791e-05,2]
[342297954,1731696729214,-15160.78590541,9.791e-05,2]
[342297955,1731696729224,-21846.85,9.791e-05,2]
[342297956,1731696729234,-10684.87950618,9.791e-05,2]
[342297957,1731696729246,-11161.97049382,9.791e-05,2]
[342297958,1731696729256,-21846.85,9.791e-05,2]
[342297959,1731696729266,-21846.85,9.791e-05,2]
[342297960,1731696729669,-3920.37,9.791e-05,2]
[342297961,1731696729686,-16559.33773184,9.791e-05,2]
[342297962,1731696729698,-4449.58194455,9.791e-05,2]
[342297963,1731696729711,-837.93032361,9.791e-05,2]
[342297964,1731696729721,-3920.37,9.791e-05,2]
[342297965,1731696729734,-2251.60496087,9.791e-05,2]
[342297966,1731696729754,-500.0,9.79e-05,2]
[342297967,1731696729764,-190.399999,9.791e-05,2]
[342297968,1731696729802,-578.89,9.789e-05,2]
[342297969,1731696729814,-1162.33,9.79e-05,2]
[342297970,1731696729824,-258.78005,9.791e-05,2]
[342297971,1731696729836,-2235.85930488,9.791e-05,2]
[342297972,1731696729849,-3558.17127447,9.791e-05,2]
[342297973,1731696730431,-578.89,9.789e-05,2]
[342297974,1731696730441,-578.89,9.789e-05,2]
[342297975,1731696730451,-578.89,9.789e-05,2]
[342297976,1731696730461,-578.93029647,9.789e-05,2]
[342297977,1731696730470,-579.68511054,9.79e-05,2]
[342297978,1731696730480,-1162.33,9.79e-05,2]
[342297979,1731696730490,-1162.33,9.79e-05,2]
[342297980,1731696730500,-1162.33,9.79e-05,2]
[342297981,1731696730509,-1162.33,9.79e-05,2]
[342297982,1731696730519,-1162.33,9.79e-05,2]
[342297983,1731696730528,-1162.40025837,9.79e-05,2]
[342297984,1731696730538,-13352.03441078,9.791e-05,2]
[342297985,1731696730548,-500.0,9.791e-05,2]
[342297986,1731696730557,-500.0,9.791e-05,2]
[342297987,1731696730567,-2303.53816907,9.791e-05,2]
[342297988,1731696730580,-7020.21140618,9.791e-05,2]
[342297989,1731696730604,-879.19989262,9.791e-05,2]
[342297990,1731696730616,-894.77,9.791e-05,2]
[342297991,1731696730763,-3025.19173524,9.791e-05,2]
[342297992,1731696730775,-711.06208023,9.791e-05,2]
[342297993,1731696730843,-2549.09976037,9.791e-05,2]
[342297994,1731696803777,500.0,0.00024759,120]
[342297995,1731697415060,200.0,0.00024671,120]
[342297996,1731697474589,1226.17,8.219e-05,2]
[342297998,1731697599285,176.0,0.00025,60]
[342298001,1731697768546,171.98,8.488e-05,2]
[342298002,1731697771138,-1500.0,8.561e-05,2]
[342298003,1731697771160,-300.0,8.577e-05,2]
[342298004,1731697771182,-23900.0,8.578e-05,2]
[342298005,1731697771204,-250.0,8.598e-05,2]
[342298006,1731697771225,-240.2,8.646e-05,2]
[342298007,1731697771246,-1000.0,8.691e-05,2]
[342298008,1731697771269,-13203.97704,8.696e-05,2]
[342298009,1731697773098,-1950.14296,8.696e-05,2]
[342298010,1731697773126,-150.0,8.705e-05,2]
[342298011,1731697773147,-500.0,8.706e-05,2]
[342298012,1731697773168,-500.0,8.706e-05,2]
[342298013,1731697773189,-500.0,8.706e-05,2]
[342298014,1731697773212,-500.0,8.706e-05,2]
[342298015,1731697773233,-500.0,8.706e-05,2]
[342298016,1731697773254,-500.0,8.706e-05,2]
[342298017,1731697773279,-500.0,8.706e-05,2]
[342298018,1731697773299,-450.86527532,8.706e-05,2]
[342298019,1731697773321,-480.14,8.706e-05,2]
[342298020,1731697773343,-182.8,8.706e-05,2]
[342298021,1731697773364,-200.0,8.708e-05,2]
[342298022,1731697773386,-50.90568868,8.716e-05,2]
[342298032,1731697832326,-199.09431132,8.716e-05,2]
[342298033,1731697832340,-250.0,8.74e-05,2]
[342298034,1731697832349,-167.43,8.747e-05,2]
[342298035,1731697832359,-653.76,8.799e-05,2]
[342298036,1731697832368,-165.4,8.968e-05,2]
[342298037,1731697832378,-249.31568868,9.041e-05,2]
[342298038,1731697832389,-513.83431132,9.041e-05,2]
[342298039,1731697832398,-170.43,9.042e-05,2]
[342298040,1731697832407,-15.73568868,9.178e-05,2]
[342298041,1731697832426,-346.58431132,9.178e-05,2]
[342298042,1731697832435,-150.0,9.178e-05,2]
[342298043,1731697832445,-4670.76175167,9.284e-05,6]
[342298044,1731697832456,-328.01300429,9.284e-05,6]
[342298045,1731697832467,-2051.30607889,9.284e-05,6]
[342298046,1731697832501,-8862.45085781,9.284e-05,6]
[342298047,1731697832513,-70982.14000008,9.284e-05,6]
[342298048,1731697832524,-629.92537232,9.284e-05,6]
[342298049,1731697832561,-7858.09293494,9.284e-05,6]
[342298050,1731697832577,-300.0,9.5e-05,3]
[342298051,1731697832586,-255.0,9.576e-05,2]
[342298052,1731697832596,-200.0,9.6e-05,2]
[342298053,1731697832606,-700.0,9.6e-05,3]
[342298054,1731697832615,-1392.0,9.6e-05,2]
[342298055,1731697832624,-150.0,9.62e-05,2]
[342298056,1731697832633,-150.0,9.643e-05,2]
[342298057,1731697832643,-150.0,9.659e-05,2]
[342298059,1731697832651,-300.0,9.669e-05,2]
[342298061,1731697832661,-4774.67,9.67e-05,2]
[342298063,1731697832671,-3961.06884135,9.67e-05,2]
[342298075,1731697838687,-26038.92115865,9.67e-05,2]
[342298076,1731697838697,-793.26,9.67e-05,2]
[342298077,1731697838706,-305.32,9.67e-05,2]
[342298078,1731697838715,-150.99,9.67e-05,2]
[342298079,1731697838725,-5000.0,9.686e-05,2]
[342298080,1731697838734,-5255.9355,9.689e-05,2]
[342298081,1731697838744,-1100.0,9.7e-05,3]
[342298082,1731697839075,-150.0,9.714e-05,2]
[342298083,1731697839086,-150.0,9.73e-05,2]
[342298084,1731697839096,-1159.0,9.73e-05,2]
[342298085,1731697839105,-1092.0,9.73e-05,2]
[342298086,1731697839115,-150.0,9.758e-05,2]
[342298087,1731697839124,-150.0,9.765e-05,2]
[342298088,1731697839134,-500.0,9.773e-05,2]
[342298089,1731697839143,-1000.0,9.777e-05,2]
[342298090,1731697839153,-458.0,9.782e-05,2]
[342298091,1731697839162,-458.0,9.782e-05,2]
[342298092,1731697839172,-458.0,9.782e-05,2]
[342298093,1731697839181,-458.0,9.782e-05,2]
[342298094,1731697839191,-458.0,9.782e-05,2]
[342298095,1731697839200,-458.0,9.782e-05,2]
[342298096,1731697839210,-458.0,9.782e-05,2]
[342298097,1731697839219,-458.0,9.782e-05,2]
[342298098,1731697839229,-458.0,9.782e-05,2]
[342298099,1731697839239,-458.0,9.782e-05,2]
[342298100,1731697839249,-458.0,9.782e-05,2]
[342298101,1731697839258,-458.0,9.782e-05,2]
[342298102,1731697839268,-458.0,9.782e-05,2]
[342298103,1731697839277,-458.0,9.782e-05,2]
[342298104,1731697839288,-458.0,9.782e-05,2]
[342298105,1731697839298,-458.0,9.782e-05,2]
[342298106,1731697839308,-458.0,9.782e-05,2]
[342298107,1731697839321,-458.0,9.782e-05,2]
[342298108,1731697839331,-458.0,9.782e-05,2]
[342298109,1731697839341,-458.0,9.782e-05,2]
[342298110,1731697839351,-458.0,9.782e-05,2]
[342298111,1731697839361,-458.0,9.782e-05,2]
[342298112,1731697839371,-458.0,9.782e-05,2]
[342298113,1731697839381,-458.0,9.782e-05,2]
[342298114,1731697839391,-458.0,9.782e-05,2]
[342298115,1731697839401,-458.0,9.782e-05,2]
[342298116,1731697839410,-458.0,9.782e-05,2]
[342298117,1731697839420,-458.0,9.782e-05,2]
[342298118,1731697839429,-458.0,9.782e-05,2]
[342298119,1731697839439,-458.0,9.782e-05,2]
[342298120,1731697839448,-458.0,9.782e-05,2]
[342298121,1731697839458,-458.0,9.782e-05,2]
[342298122,1731697839468,-458.0,9.782e-05,2]
[342298123,1731697839477,-458.0,9.782e-05,2]
[342298124,1731697839487,-458.0,9.782e-05,2]
[342298125,1731697839496,-458.0,9.782e-05,2]
[342298126,1731697839505,-458.0,9.782e-05,2]
[342298127,1731697839514,-458.0,9.782e-05,2]
[342298128,1731697839523,-497.75001268,9.784e-05,3]
[342298129,1731697839533,-500.0,9.784e-05,2]
[342298130,1731697839542,-679.02,9.784e-05,2]
[342298131,1731697839551,-254.99141711,9.784e-05,2]
[342298132,1731697839592,-245.00858289,9.784e-05,2]
[342298133,1731697839602,-500.0,9.784e-05,2]
[342298134,1731697839611,-500.0,9.784e-05,2]
[342298135,1731697839621,-500.0,9.784e-05,2]
[342298136,1731697839630,-244.80626532,9.784e-05,2]
[342298137,1731697839710,-255.19373468,9.784e-05,2]
[342298138,1731697839720,-500.0,9.784e-05,2]
[342298139,1731697839731,-500.0,9.784e-05,2]
[342298140,1731697839740,-500.0,9.784e-05,2]
[342298141,1731697839750,-500.0,9.784e-05,2]
[342298142,1731697839759,-1493.91,9.784e-05,2]
[342298143,1731697839769,-500.0,9.784e-05,2]
[342298144,1731697839780,-500.0,9.784e-05,2]
[342298145,1731697839790,-500.0,9.784e-05,2]
[342298146,1731697839799,-500.0,9.784e-05,2]
[342298147,1731697839809,-500.0,9.784e-05,2]
[342298148,1731697839824,-404.36405579,9.784e-05,2]
[342298149,1731697839834,-500.0,9.784e-05,2]
[342298150,1731697839847,-500.0,9.784e-05,2]
[342298151,1731697839858,-500.0,9.784e-05,2]
[342298152,1731697839869,-500.0,9.784e-05,2]
[342298153,1731697839879,-500.0,9.784e-05,2]
[342298154,1731697839889,-500.0,9.784e-05,2]
[342298155,1731697839899,-500.0,9.784e-05,2]
[342298156,1731697839909,-960.09,9.785e-05,2]
[342298157,1731697839919,-500.0,9.785e-05,2]
[342298158,1731697839928,-550.85,9.785e-05,2]
[342298159,1731697839938,-500.0,9.785e-05,2]
[342298160,1731697839948,-500.0,9.785e-05,2]
[342298161,1731697839957,-500.0,9.785e-05,2]
[342298162,1731697839967,-500.0,9.785e-05,2]
[342298163,1731697839977,-500.0,9.785e-05,2]
[342298164,1731697839986,-500.0,9.785e-05,2]
[342298165,1731697839995,-1187.15,9.785e-05,2]
[342298166,1731697840004,-592.86657743,9.785e-05,2]
[342298167,1731697840013,-500.0,9.785e-05,2]
[342298168,1731697840022,-500.0,9.785e-05,2]
[342298169,1731697840033,-500.0,9.785e-05,2]
[342298170,1731697840047,-1522.2,9.785e-05,2]
[342298171,1731697840057,-599.06,9.785e-05,2]
[342298172,1731697840073,-500.0,9.785e-05,2]
[342298173,1731697840083,-500.0,9.785e-05,2]
[342298174,1731697840094,-1030.86,9.785e-05,2]
[342298175,1731697840104,-500.0,9.785e-05,2]
[342298176,1731697840115,-500.0,9.785e-05,2]
[342298177,1731697840125,-500.0,9.785e-05,2]
[342298180,1731697840135,-500.0,9.785e-05,2]
[342298181,1731697840145,-500.0,9.785e-05,2]
[342298183,1731697840155,-500.0,9.785e-05,2]
[342298185,1731697840164,-500.0,9.785e-05,2]
[342298186,1731697840174,-500.0,9.785e-05,2]
[342298189,1731697840183,-500.0,9.785e-05,2]
[342298190,1731697840192,-500.0,9.785e-05,2]
[342298191,1731697840201,-500.0,9.785e-05,2]
[342298192,1731697840211,-500.0,9.785e-05,2]
[342298193,1731697840220,-500.0,9.785e-05,2]
[342298194,1731697840229,-484.88679893,9.785e-05,2]
[342298195,1731697840238,-500.0,9.785e-05,2]
[342298196,1731697840247,-500.0,9.785e-05,2]
[342298197,1731697840256,-500.0,9.785e-05,2]
[342298198,1731697840265,-500.0,9.785e-05,2]
[342298199,1731697840274,-500.0,9.785e-05,2]
[342298200,1731697840284,-500.0,9.785e-05,2]
[342298201,1731697840293,-500.0,9.785e-05,2]
[342298202,1731697840302,-500.0,9.785e-05,2]
[342298203,1731697840312,-500.0,9.785e-05,2]
[342298204,1731697840325,-500.0,9.785e-05,2]
[342298205,1731697840334,-500.0,9.785e-05,2]
[342298206,1731697840343,-500.0,9.785e-05,2]
[342298207,1731697840352,-500.0,9.785e-05,2]
[342298208,1731697840362,-500.0,9.785e-05,2]
[342298209,1731697840371,-628.73210046,9.785e-05,2]
[342298210,1731697840381,-500.0,9.785e-05,2]
[342298211,1731697840390,-500.0,9.785e-05,2]
[342298212,1731697840400,-571.24,9.785e-05,2]
[342298213,1731697840409,-535.92132591,9.785e-05,2]
[342298214,1731697840418,-500.0,9.785e-05,2]
[342298215,1731697840427,-500.0,9.785e-05,2]
[342298216,1731697840437,-500.0,9.785e-05,2]
[342298217,1731697840447,-500.0,9.785e-05,2]
[342298218,1731697840456,-500.0,9.785e-05,2]
[342298219,1731697840466,-569.15465902,9.785e-05,2]
[342298220,1731697840475,-500.0,9.785e-05,2]
[342298221,1731697840485,-500.0,9.785e-05,2]
[342298222,1731697840494,-500.0,9.785e-05,2]
[342298223,1731697840503,-500.0,9.785e-05,2]
[342298224,1731697840513,-500.0,9.785e-05,2]
[342298225,1731697840522,-500.0,9.785e-05,2]
[342298226,1731697840532,-500.0,9.785e-05,2]
[342298227,1731697840541,-594.65885018,9.785e-05,2]
[342298228,1731697840551,-500.0,9.785e-05,2]
[342298229,1731697840560,-500.0,9.785e-05,2]
[342298230,1731697840574,-500.0,9.785e-05,2]
[342298231,1731697840583,-500.0,9.785e-05,2]
[342298232,1731697840592,-873.01,9.785e-05,2]
[342298233,1731697840602,-500.0,9.785e-05,2]
[342298234,1731697840611,-500.0,9.785e-05,2]
[342298235,1731697840621,-517.47,9.785e-05,2]
[342298236,1731697840630,-500.0,9.785e-05,2]
[342298237,1731697840639,-500.0,9.785e-05,2]
[342298238,1731697840651,-500.0,9.785e-05,2]
[342298239,1731697840660,-500.0,9.785e-05,2]
[342298240,1731697840669,-500.0,9.785e-05,2]
[342298241,1731697840678,-500.0,9.785e-05,2]
[342298242,1731697840687,-1526.9,9.785e-05,2]
[342298243,1731697840697,-825.08,9.785e-05,2]
[342298244,1731697840707,-500.0,9.785e-05,2]
[342298245,1731697840716,-500.0,9.785e-05,2]
[342298246,1731697840725,-500.0,9.785e-05,2]
[342298247,1731697840734,-500.0,9.785e-05,2]
[342298248,1731697840743,-500.0,9.785e-05,2]
[342298249,1731697840753,-500.0,9.785e-05,2]
[342298250,1731697840762,-500.0,9.785e-05,2]
[342298251,1731697840771,-500.0,9.785e-05,2]
[342298252,1731697840780,-500.0,9.785e-05,2]
[342298253,1731697840789,-500.0,9.785e-05,2]
[342298254,1731697840799,-1487.06,9.785e-05,2]
[342298255,1731697840808,-500.0,9.785e-05,2]
[342298256,1731697840822,-500.0,9.785e-05,2]
[342298257,1731697840832,-500.0,9.785e-05,2]
[342298258,1731697840841,-500.0,9.785e-05,2]
[342298259,1731697840851,-500.0,9.785e-05,2]
[342298260,1731697840861,-500.0,9.785e-05,2]
[342298261,1731697840870,-500.0,9.785e-05,2]
[342298262,1731697840880,-185.74120907,9.785e-05,2]
[342298263,1731697840889,-500.0,9.785e-05,2]
[342298264,1731697840899,-1327.05,9.785e-05,2]
[342298265,1731697840908,-500.0,9.785e-05,2]
[342298266,1731697840917,-500.0,9.785e-05,2]
[342298267,1731697840927,-532.22246528,9.785e-05,2]
[342298268,1731697840937,-500.0,9.785e-05,2]
[342298269,1731697840946,-500.0,9.785e-05,2]
[342298270,1731697840956,-500.0,9.785e-05,2]
[342298271,1731697840965,-500.0,9.785e-05,2]
[342298272,1731697840974,-500.0,9.785e-05,2]
[342298273,1731697840983,-500.0,9.785e-05,2]
[342298274,1731697840992,-500.0,9.785e-05,2]
[342298275,1731697841002,-500.0,9.785e-05,2]
[342298276,1731697841011,-500.0,9.785e-05,2]
[342298277,1731697841020,-1532.53,9.785e-05,2]
[342298278,1731697841029,-500.0,9.785e-05,2]
[342298279,1731697841038,-500.0,9.785e-05,2]
[342298280,1731697841052,-500.0,9.785e-05,2]
[342298281,1731697841061,-500.0,9.785e-05,2]
[342298282,1731697841073,-500.0,9.785e-05,2]
[342298283,1731697841082,-604.6,9.785e-05,2]
[342298284,1731697841093,-500.0,9.785e-05,2]
[342298285,1731697841102,-500.0,9.785e-05,2]
[342298286,1731697841111,-500.0,9.785e-05,2]
[342298287,1731697841121,-882.56,9.785e-05,2]
[342298288,1731697841131,-500.0,9.785e-05,2]
[342298289,1731697841141,-1421.74,9.785e-05,2]
[342298290,1731697841150,-211.18968986,9.785e-05,2]
[342298291,1731697841161,-500.0,9.785e-05,2]
[342298292,1731697841170,-500.0,9.785e-05,2]
[342298293,1731697841179,-500.0,9.785e-05,2]